bitfinex-derivatives/quotes_ETHF0:USTF0_20250217
["timestamp","ask_amount","ask_price","bid_price","bid_amount"]
[1739777254514,3.95173,2688.0,2687.9,0.5544]
[1739777254916,0.74393,2688.0,2687.9,0.5544]
[1739777255121,0.74392,2688.1,2687.9,1.29835]
[1739777255519,0.5756,2688.2,2688.0,0.74392]
[1739777255719,1.31949,2688.2,2688.0,0.74392]
[1739777255920,0.5756,2688.2,2688.0,0.74393]
[1739777256120,0.5756,2688.2,2688.0,1.92732]
[1739777256320,3.21338618,2688.3,2688.0,1.1834]
[1739777256617,3.21338618,2688.3,2688.1,0.74389]
[1739777256819,3.95725618,2688.3,2688.1,0.74389]
[1739777257023,3.21338618,2688.3,2688.1,0.74389]
[1739777257225,3.95723618,2688.3,2688.1,0.74389]
[1739777257724,3.21338618,2688.3,2688.1,0.74389]
[1739777258220,3.21338618,2688.3,2688.2,0.74388]
[1739777259125,3.95725618,2688.3,2688.1,0.74389]
[1739777259323,3.95725618,2688.3,2688.1,0.7439]
[1739777261130,0.00558618,2688.3,2688.0,1.1834]
[1739777261328,0.00558618,2688.3,2688.2,0.74388]
[1739777261528,0.00558618,2688.3,2688.1,0.74389]
[1739777261529,0.74945618,2688.3,2688.1,0.74389]
[1739777262327,0.74945618,2688.3,2688.0,1.1834]
[1739777262930,0.74945618,2688.3,2688.1,0.7439]
[1739777263130,0.5807,2688.2,2688.1,0.7439]
[1739777263327,0.5807,2688.2,2688.0,1.1834]
[1739777263532,0.5807,2688.2,2688.0,1.92733]
[1739777263533,1.32461,2688.2,2688.0,1.92733]
[1739777264426,0.5807,2688.2,2688.0,1.1834]
[1739777264733,0.5807,2688.2,2688.0,1.92733]
[1739777264931,0.5807,2688.2,2687.9,0.5544]
[1739777265235,0.74394,2688.0,2687.9,0.5544]
[1739777265535,0.00558618,2688.3,2688.2,0.74388]
[1739777265928,0.00558618,2688.3,2688.2,5.10628]
[1739777269239,0.00558618,2688.3,2688.2,1.89848]
[1739777271044,0.00558618,2688.3,2688.2,1.1546]
[1739777271241,0.74943618,2688.3,2688.2,0.587]
[1739777271443,0.74945618,2688.3,2688.0,0.74391]
[1739777271641,0.00558618,2688.3,2687.9,1.665]
[1739777271847,0.74393,2688.1,2687.9,1.1209]
[1739777272043,4.51423,2688.0,2687.9,0.5544]
[1739777272243,3.7703,2688.0,2687.8,0.00558618]
[1739777272744,3.7703,2688.0,2687.8,0.74955618]
[1739777272949,3.7703,2688.0,2687.9,0.74396]
[1739777273150,3.7703,2688.0,2687.8,0.00558618]
[1739777273450,4.51424,2688.0,2687.8,0.74955618]
[1739777273749,4.51424,2688.0,2687.8,0.00558618]
[1739777273950,4.51424,2688.0,2687.8,0.74957618]
[1739777274442,3.7703,2688.0,2687.8,0.00558618]
[1739777274642,3.7703,2688.0,2687.9,0.74396]
[1739777274843,3.7703,2688.0,2687.8,0.00558618]
[1739777275045,4.51424,2688.0,2687.8,0.74956618]
[1739777275449,3.7703,2688.0,2687.8,0.74956618]
[1739777276053,3.7703,2688.0,2687.9,0.74396]
[1739777276350,4.51425,2688.0,2687.8,0.00558618]
[1739777276653,4.51424,2688.0,2687.8,0.00558618]
[1739777277542,0.74396,2687.9,2687.8,0.00558618]
[1739777277743,6.2163,2688.0,2687.8,0.00558618]
[1739777277946,0.74396,2687.9,2687.8,0.00558618]
[1739777278344,6.96025,2688.0,2687.8,0.00558618]
[1739777278554,6.2163,2688.0,2687.8,0.00558618]
[1739777278754,6.96025,2688.0,2687.8,0.00558618]
[1739777279251,6.2163,2688.0,2687.8,0.00558618]
[1739777279553,6.96025,2688.0,2687.8,0.00558618]
[1739777280053,6.2163,2688.0,2687.8,0.00558618]
[1739777280247,6.2163,2688.0,2687.8,0.74957618]
[1739777280655,6.96024,2688.0,2687.8,0.00558618]
[1739777280950,6.2163,2688.0,2687.8,0.00558618]
[1739777281146,6.2163,2688.0,2687.9,0.74396]
[1739777281854,6.2163,2688.0,2687.8,0.00558618]
[1739777282051,6.2163,2688.0,2687.9,0.74396]
[1739777282253,6.2163,2688.0,2687.8,0.74955618]
[1739777282851,6.2163,2688.0,2687.9,0.74396]
[1739777283445,6.2163,2688.0,2687.8,0.00558618]
[1739777283643,3.7703,2688.0,2687.8,0.00558618]
[1739777283858,0.00558618,2688.3,2688.2,0.74388]
[1739777286053,3.27997071,2688.3,2687.8,0.00558618]
[1739777286359,3.27997071,2688.3,2687.9,0.74395]
[1739777286360,4.1978,2688.2,2687.9,0.74395]
[1739777286546,4.94168,2688.2,2687.9,0.74395]
[1739777286753,4.1978,2688.2,2687.8,0.00558618]
[1739777287150,1.7528,2688.2,2688.1,0.74391]
[1739777287358,4.1978,2688.2,2688.1,0.74391]
[1739777287559,1.7528,2688.2,2688.1,0.74391]
[1739777289663,1.7528,2688.2,2687.9,2.41385]
[1739777289858,1.7528,2688.2,2687.9,1.6699]
[1739777290160,1.7528,2688.2,2688.1,0.74391]
[1739777291455,2.45058618,2688.3,2688.2,0.74388]
[1739777291652,0.00558618,2688.3,2688.2,0.74388]
[1739777294361,5.6528,2689.0,2688.9,0.74369]
[1739777295265,3.95146,2689.0,2688.9,0.74369]
[1739777295653,3.7901,2689.0,2688.9,0.74369]
[1739777295856,1.113,2689.1,2688.6,5.06719]
[1739777296060,2.445,2689.3,2688.7,5.13374453]
[1739777296365,2.445,2689.3,2688.7,3.84878453]
[1739777296561,2.445,2689.3,2689.2,0.7436]
[1739777296863,3.27438453,2690.0,2689.4,0.74355]
[1739777297055,3.72771,2689.9,2689.6,0.74347]
[1739777297257,2.9843,2689.9,2689.7,0.74345]
[1739777297859,3.72772,2689.9,2689.6,0.74348]
[1739777298463,3.72772,2689.9,2689.5,0.5665]
[1739777298665,2.9843,2689.9,2689.7,0.74346]
[1739777298968,2.9843,2689.9,2689.7,0.74344]
[1739777299666,0.5393,2689.9,2689.5,0.5665]
[1739777299964,3.0187,2690.0,2689.9,0.74341]
[1739777301863,0.5737,2690.0,2689.9,0.74341]
[1739777302163,0.5737,2690.0,2689.7,0.74345]
[1739777302771,0.5737,2690.0,2689.9,0.74341]
[1739777303364,0.5737,2690.0,2689.5,0.5665]
[1739777303565,0.5737,2690.0,2689.8,0.74342]
[1739777303767,0.5737,2690.0,2689.9,0.74341]
[1739777304268,0.5737,2690.0,2689.8,0.74342]
[1739777304462,1.31709,2690.0,2689.8,0.74342]
[1739777304664,0.5737,2690.0,2689.8,0.74342]
[1739777304867,1.31709,2690.0,2689.8,0.74342]
[1739777305471,0.5737,2690.0,2689.8,0.74342]
[1739777305771,1.31709,2690.0,2689.8,0.74342]
[1739777306570,1.31709,2690.0,2689.7,0.74345]
[1739777307168,0.5737,2690.0,2689.7,0.74345]
[1739777307367,1.31711,2690.0,2689.7,0.74345]
[1739777307670,0.74341,2689.9,2689.7,0.74345]
[1739777308173,0.74341,2689.9,2689.5,0.5665]
[1739777308368,0.74341,2689.9,2689.6,0.74347]
[1739777308563,0.74341,2689.9,2689.5,0.5665]
[1739777308871,0.74341,2689.9,2689.7,0.74345]
[1739777309474,3.84808453,2690.0,2689.5,0.5665]
[1739777309776,3.2078,2689.8,2689.3,1.11968618]
[1739777310075,0.7435,2689.6,2689.4,0.74355]
[1739777310375,0.7435,2689.6,2689.4,0.74354]
[1739777310571,0.5687,2689.6,2689.3,1.11968618]
[1739777310767,1.3122,2689.6,2689.4,0.74352]
[1739777311673,1.3122,2689.6,2689.3,1.11968618]
[1739777311674,0.5687,2689.6,2689.3,1.11968618]
[1739777311875,0.5687,2689.6,2689.5,0.74352]
[1739777314671,3.7713,2690.1,2689.3,1.11968618]
[1739777314976,1.29009,2690.0,2689.5,1.85875]
[1739777315474,0.5467,2690.0,2689.9,0.74341]
[1739777316070,1.29008,2690.0,2689.9,0.74341]
[1739777316375,0.5467,2690.0,2689.9,0.74341]
[1739777316778,1.29008,2690.0,2689.9,0.74341]
[1739777317178,0.5467,2690.0,2689.9,0.74341]
[1739777318272,0.5798,2690.4,2689.9,0.74341]
[1739777318273,0.5926,2690.4,2690.3,0.7433]
[1739777318476,0.5741,2690.6,2690.5,0.74324]
[1739777319178,0.5741,2690.6,2690.4,0.74326]
[1739777319376,0.5741,2690.6,2690.3,1.1334]
[1739777319579,1.31732,2690.6,2690.3,1.87668]
[1739777319771,1.31732,2690.6,2690.3,1.87669]
[1739777320280,0.5741,2690.6,2690.3,1.1334]
[1739777320571,0.5741,2690.6,2690.3,1.87668]
[1739777320572,1.31733,2690.6,2690.3,1.87668]
[1739777320776,0.5741,2690.6,2690.5,0.74324]
[1739777321171,3.7846,2690.7,2690.6,0.74322]
[1739777321675,3.7846,2690.7,2690.5,0.74322]
[1739777321875,3.7846,2690.7,2690.6,0.74322]
[1739777322978,3.7846,2690.7,2690.4,0.5748]
[1739777323573,3.7846,2690.7,2690.6,0.74322]
[1739777323873,3.7846,2690.7,2690.4,0.5748]
[1739777324088,3.7846,2690.7,2690.5,0.74322]
[1739777324269,3.7846,2690.7,2690.4,0.5748]
[1739777324472,3.7846,2690.7,2690.5,0.74323]
[1739777324673,3.2078,2690.7,2690.4,0.5748]
[1739777324876,3.2078,2690.7,2690.6,0.74322]
[1739777325078,0.5728,2691.1,2690.6,0.74322]
[1739777325079,3.2078,2691.0,2690.9,0.74313]
[1739777325373,0.5728,2691.1,2690.8,0.5542]
[1739777325577,6.48218453,2691.6,2691.5,0.74297]
[1739777325782,6.48218453,2691.6,2691.4,0.74298]
[1739777326079,3.2078,2691.6,2691.3,0.743]
[1739777326377,1.1563,2691.8,2691.0,10.98625632]
[1739777326581,0.74292,2691.7,2691.3,0.743]
[1739777327079,1.1563,2691.8,2691.1,2.443]
[1739777327080,0.74294,2691.6,2691.1,2.443]
[1739777327382,0.74292,2691.7,2691.1,2.443]
[1739777327575,3.2078,2691.9,2691.7,0.7429]
[1739777327781,3.2078,2691.9,2691.3,3.27438453]
[1739777327972,3.95067,2691.9,2691.6,0.74293]
[1739777328276,0.74293,2691.7,2691.4,8.46284381]
[1739777328684,1.3379,2691.8,2691.4,9.20582381]
[1739777328978,0.595,2691.8,2691.5,0.74296]
[1739777329174,0.595,2691.8,2691.4,8.46284381]
[1739777329883,0.595,2691.8,2691.5,0.74295]
[1739777330186,0.595,2691.8,2691.6,0.74294]
[1739777330378,0.595,2691.8,2691.5,0.74296]
[1739777331176,1.33791,2691.8,2691.4,9.20582381]
[1739777331476,0.74293,2691.7,2691.4,8.46284381]
[1739777331673,1.91793,2691.7,2691.4,8.46284381]
[1739777331975,1.91792,2691.7,2691.4,8.46284381]
[1739777332177,1.175,2691.7,2691.4,8.46284381]
[1739777332480,3.2078,2691.6,2691.4,8.46284381]
[1739777332678,3.95076,2691.6,2691.4,8.46284381]
[1739777332879,3.95074,2691.6,2691.4,8.46284381]
[1739777333280,3.2078,2691.6,2691.4,8.46284381]
[1739777333482,3.2078,2691.6,2691.4,7.90864381]
[1739777333783,3.2078,2691.6,2691.2,0.74304]
[1739777333982,0.74297,2691.5,2691.2,0.74304]
[1739777334383,3.2078,2691.6,2691.3,0.74301]
[1739777334684,3.2078,2691.6,2691.1,0.5455]
[1739777335075,3.2078,2691.6,2691.5,0.74297]
[1739777338091,3.2078,2691.6,2691.5,1.31277]
[1739777340684,0.74281,2692.1,2691.5,12.40470544]
[1739777340888,0.5753,2692.2,2691.9,0.74284]
[1739777341083,0.7428,2692.1,2691.9,0.74284]
[1739777341692,3.2078,2692.0,2691.6,0.5756]
[1739777341886,0.74291,2691.7,2691.6,0.5756]
[1739777342084,3.2078,2692.0,2691.6,0.5756]
[1739777342283,3.95064,2692.0,2691.8,0.74287]
[1739777342587,3.2078,2692.0,2691.9,0.74286]
[1739777343587,3.2078,2692.3,2691.9,3.27438453]
[1739777343789,3.2078,2692.3,2692.2,0.74277]
[1739777343986,3.2078,2692.3,2692.2,4.01715453]
[1739777344490,3.2078,2692.3,2692.1,0.5472]
[1739777344685,3.2078,2692.3,2692.2,0.74277]
[1739777344886,3.2078,2692.3,2692.2,8.74299992]
[1739777345085,3.2078,2692.3,2692.2,9.28369992]
[1739777345386,3.2078,2692.3,2692.2,8.54092992]
[1739777345585,3.2078,2692.3,2692.2,9.28369992]
[1739777347288,3.2078,2692.3,2692.2,8.54092992]
[1739777347487,3.2078,2692.3,2692.2,9.28369992]
[1739777348589,3.2078,2692.3,2692.2,8.54092992]
[1739777348787,3.2078,2692.3,2692.2,9.28369992]
[1739777350092,3.2078,2692.3,2692.2,8.54092992]
[1739777350288,3.95055,2692.3,2692.2,8.54092992]
[1739777350485,3.2078,2692.3,2692.2,8.54092992]
[1739777350688,3.2078,2692.3,2692.2,9.28369992]
[1739777351686,3.2078,2692.3,2692.2,8.54092992]
[1739777351890,3.95055,2692.3,2692.2,9.28369992]
[1739777352194,3.2078,2692.3,2692.2,9.28369992]
[1739777352394,3.2078,2692.3,2692.2,8.54092992]
[1739777352594,3.2078,2692.3,2692.2,9.28369992]
[1739777352790,3.95055,2692.3,2692.2,8.54092992]
[1739777354102,3.2078,2692.3,2692.2,9.28369992]
[1739777354294,3.2078,2692.3,2692.2,8.54092992]
[1739777354790,3.2078,2692.3,2692.2,9.28369992]
[1739777355390,3.2078,2692.3,2692.2,8.74299992]
[1739777355591,3.2078,2692.3,2692.2,9.33199992]
[1739777358386,3.2078,2692.3,2692.2,8.58922992]
[1739777358589,3.2078,2692.3,2692.2,8.00022992]
[1739777358793,0.74278,2692.2,2691.9,0.74284]
[1739777358994,0.5818,2692.1,2691.7,4.1325]
[1739777359199,1.32462,2692.1,2691.8,0.74286]
[1739777359397,0.5818,2692.1,2691.7,9.51043309]
[1739777359706,6.48218453,2692.0,2691.2,2.44]
[1739777360000,3.2078,2691.6,2691.3,1.1179]
[1739777360308,0.5733,2691.5,2691.3,1.8609]
[1739777361001,0.5733,2691.5,2691.3,1.1179]
[1739777361500,1.1542,2691.5,2691.3,1.86091]
[1739777361803,1.1542,2691.5,2691.3,1.8609]
[1739777362001,1.1542,2691.5,2691.4,0.743]
[1739777362604,0.5733,2691.5,2691.4,0.743]
[1739777362899,0.5733,2691.5,2691.4,3.9508]
[1739777363295,0.5733,2691.5,2691.4,3.2078]
[1739777363899,0.5733,2691.5,2691.1,3.2078]
[1739777364092,0.74305,2691.2,2691.1,3.2078]
[1739777364293,0.7431,2691.1,2690.8,1.1409]
[1739777364606,1.2972,2691.1,2690.8,1.1409]
[1739777364900,0.591,2691.0,2690.8,1.1409]
[1739777365300,0.591,2691.0,2690.9,0.74313]
[1739777365907,2.44,2691.3,2691.0,0.74309]
[1739777366106,3.031,2691.3,2691.0,0.74308]
[1739777366309,3.031,2691.3,2691.2,0.74305]
[1739777366499,0.591,2691.3,2691.2,0.74305]
[1739777367797,1.33403,2691.3,2691.0,0.74308]
[1739777368201,0.591,2691.3,2690.8,4.8876]
[1739777368406,0.591,2691.3,2691.1,0.74307]
[1739777368607,1.33404,2691.3,2691.0,0.74308]
[1739777368794,0.591,2691.3,2690.9,7.70978844]
[1739777369201,0.74306,2691.2,2690.9,7.70978844]
[1739777369501,0.74309,2691.1,2690.8,3.2078]
[1739777369706,0.74307,2691.2,2690.9,0.74313]
[1739777370098,0.74309,2691.1,2690.9,0.74313]
[1739777370299,0.591,2691.3,2690.8,3.2078]
[1739777370508,1.33405,2691.3,2691.0,0.7431]
[1739777370704,0.591,2691.3,2690.8,3.2078]
[1739777371210,3.2078,2691.2,2690.7,23.87396001]
[1739777371504,5.6478,2691.2,2690.7,0.00557548]
[1739777371702,0.74316,2690.8,2690.7,0.00557548]
[1739777372010,3.2078,2690.9,2690.7,0.00557548]
[1739777372202,1.1706,2690.8,2690.7,0.00557548]
[1739777372509,1.91376,2690.8,2690.7,0.00557548]
[1739777372709,1.1706,2690.8,2690.7,0.00557548]
[1739777373302,1.91376,2690.8,2690.7,0.00557548]
[1739777373811,1.7584,2690.8,2690.7,0.00557548]
[1739777374004,1.7584,2690.8,2690.7,0.74876548]
[1739777374606,0.5788,2690.8,2690.7,0.74876548]
[1739777376009,0.5788,2690.8,2690.7,0.00557548]
[1739777376313,1.32196,2690.8,2690.7,0.00557548]
[1739777376504,0.5788,2690.8,2690.7,0.74876548]
[1739777378015,0.5393,2691.0,2690.7,0.00557548]
[1739777378312,0.5393,2691.0,2690.9,0.74313]
[1739777379212,0.5393,2691.0,2690.7,0.00557548]
[1739777379414,0.5393,2691.0,2690.9,0.74313]
[1739777380712,0.5393,2691.0,2690.7,0.55467548]
[1739777381017,0.74313,2690.9,2690.7,1.29784548]
[1739777381214,0.74313,2690.9,2690.7,0.74874548]
[1739777381415,3.7471,2691.0,2690.7,0.00557548]
[1739777381611,3.7471,2691.0,2690.9,0.74313]
[1739777382211,3.7471,2691.0,2690.7,0.00557548]
[1739777382514,3.7471,2691.0,2690.8,0.74315]
[1739777382918,4.49021,2691.0,2690.8,0.74315]
[1739777383515,0.74314,2690.9,2690.7,0.74875548]
[1739777383719,0.74315,2690.9,2690.7,0.74874548]
[1739777384414,3.7471,2691.0,2690.7,0.00557548]
[1739777384917,3.7471,2691.0,2690.8,0.74314]
[1739777385517,0.74315,2690.9,2690.7,0.74874548]
[1739777385720,3.7471,2691.0,2690.8,0.74315]
[1739777385920,4.49021,2691.0,2690.8,0.74315]
[1739777386216,4.49021,2691.0,2690.7,0.00557548]
[1739777386217,3.7471,2691.0,2690.7,0.00557548]
[1739777386522,0.74316,2690.8,2690.7,0.00557548]
[1739777389315,3.7471,2691.0,2690.7,0.00557548]
[1739777389515,0.74314,2690.9,2690.8,0.74316]
[1739777389712,3.7471,2691.0,2690.7,0.00557548]
[1739777389916,3.7471,2691.0,2690.7,0.74874548]
[1739777390224,0.74316,2690.9,2690.7,0.74874548]
[1739777390432,3.7471,2691.0,2690.8,0.74314]
[1739777390723,3.7471,2691.0,2690.9,0.74313]
[1739777391417,3.7471,2691.0,2690.7,0.00557548]
[1739777391627,3.7471,2691.0,2690.9,0.74313]
[1739777392518,3.2078,2691.0,2690.9,0.74313]
[1739777393119,3.2078,2691.0,2690.7,0.58127548]
[1739777393320,3.95092,2691.0,2690.8,0.74316]
[1739777393524,3.95093,2691.0,2690.8,0.74316]
[1739777394120,0.74313,2690.9,2690.7,0.00557548]
[1739777394327,0.74316,2690.8,2690.7,0.00557548]
[1739777394533,1.28886,2690.8,2690.7,0.00557548]
[1739777395226,1.28886,2690.8,2690.7,0.74876548]
[1739777395818,0.5457,2690.8,2690.7,0.74876548]
[1739777396014,3.2078,2691.0,2690.8,0.74314]
[1739777396424,0.74314,2690.9,2690.7,0.74874548]
[1739777397416,0.74316,2690.8,2690.7,0.74875548]
[1739777397628,0.74314,2690.9,2690.8,0.74316]
[1739777398028,3.2078,2691.0,2690.7,0.74874548]
[1739777398329,0.74316,2690.8,2690.7,0.00557548]
[1739777400427,8.92318453,2691.0,2689.8,23.8008]
[1739777400618,3.2078,2690.4,2690.0,0.5672]
[1739777400822,0.74333,2690.2,2690.0,0.5672]
[1739777401022,0.74333,2690.2,2690.0,1.31057]
[1739777401628,1.1298,2690.3,2689.9,0.5716]
[1739777401828,3.2078,2690.0,2689.8,1.31621548]
[1739777402025,0.5542,2689.9,2689.8,1.31621548]
[1739777403125,3.7834,2690.3,2689.8,0.57277548]
[1739777403331,6.2244,2690.3,2689.8,0.57277548]
[1739777404226,6.2244,2690.3,2690.2,0.74333]
[1739777404432,3.2078,2690.3,2690.2,0.74333]
[1739777405435,0.55973983,2690.4,2690.3,0.7433]
[1739777405933,0.00553983,2690.4,2690.3,0.7433]
[1739777406130,3.2078,2690.7,2690.6,0.74322]
[1739777406832,3.95099,2690.7,2690.2,6.28138453]
[1739777407031,3.2078,2690.7,2690.2,3.75032]
[1739777407232,0.74328,2690.4,2690.3,7.76641288]
[1739777407429,1.1508,2690.6,2690.2,0.566]
[1739777407635,0.5836,2690.3,2690.0,4.48996]
[1739777408436,1.32691,2690.3,2690.0,4.48996]
[1739777409034,1.32691,2690.3,2690.0,3.95116]
[1739777409333,5.71538453,2690.2,2689.7,4.95423896]
[1739777409639,0.7434,2690.0,2689.6,0.74348]
[1739777409940,1.30511,2689.9,2689.5,1.3119]
[1739777410236,1.1458,2689.9,2689.5,0.5684]
[1739777410645,1.1458,2689.9,2689.8,0.74901548]
[1739777410825,0.5841,2689.9,2689.8,0.74901548]
[1739777411025,3.2078,2690.1,2690.0,0.74338]
[1739777411229,0.5841,2690.5,2690.4,0.74327]
[1739777411640,5.6488,2690.7,2690.1,3.27438453]
[1739777411833,3.2078,2690.7,2690.6,0.74322]
[1739777412842,3.2078,2690.7,2690.5,0.74323]
[1739777413026,3.2078,2690.7,2690.4,0.5684]
[1739777413735,3.951,2690.7,2690.4,0.5684]
[1739777414036,3.2078,2690.7,2690.4,0.5684]
[1739777414436,3.2078,2690.7,2690.2,1.1363]
[1739777414636,3.2078,2690.7,2690.5,0.74323]
[1739777415241,3.2078,2690.7,2690.6,0.74322]
[1739777415537,3.2078,2690.7,2690.5,0.74323]
[1739777415734,3.2078,2690.7,2690.6,0.74322]
[1739777418741,3.2078,2691.2,2690.6,1.85805]
[1739777418940,3.2078,2691.2,2691.1,0.74308]
[1739777419141,3.2078,2691.9,2691.1,3.27438453]
[1739777419342,3.2078,2691.9,2691.8,0.74289]
[1739777419647,4.44768453,2692.3,2691.8,0.74289]
[1739777419648,1.1733,2692.3,2691.8,3.2078]
[1739777419845,1.1733,2692.3,2692.1,0.74278]
[1739777420142,3.2078,2692.5,2691.8,3.2078]
[1739777420338,3.2078,2692.5,2691.9,0.5604]
[1739777420645,0.74274,2692.4,2691.9,8.34011937]
[1739777420834,1.33374,2692.4,2691.9,8.34011937]
[1739777421038,1.33374,2692.4,2690.3,1.63039203]
[1739777421039,9.75656906,2692.0,2691.2,0.00557548]
[1739777421239,6.48218453,2691.3,2690.4,0.5375]
[1739777421541,3.27438453,2691.7,2690.4,0.5375]
[1739777421542,0.74322,2690.6,2690.4,0.5375]
[1739777421750,5.6898,2690.7,2690.1,8.46640366]
[1739777422046,3.27438453,2690.5,2690.1,1.144]
[1739777422641,3.27438453,2690.5,2690.1,1.88735]
[1739777422947,0.00557548,2690.6,2690.2,0.74333]
[1739777423246,0.00557548,2690.6,2690.4,0.74325]
[1739777423847,0.00557548,2690.6,2690.1,1.144]
[1739777424146,0.00557548,2690.6,2690.5,0.74324]
[1739777425344,0.00557548,2690.6,2690.3,0.5806]
[1739777425839,0.74879548,2690.6,2690.5,7.98759554]
[1739777426044,0.74879548,2690.6,2690.1,1.144]
[1739777426045,3.27996001,2690.6,2690.1,1.144]
[1739777426239,0.74331,2690.3,2690.1,1.144]
[1739777426437,3.2078,2690.4,2690.0,0.00557548]
[1739777426635,3.2078,2690.1,2690.0,0.00557548]
[1739777428744,3.95115,2690.1,2690.0,0.00557548]
[1739777429342,5.6928,2690.1,2690.0,0.00557548]
[1739777429549,9.48714419,2690.1,2690.0,0.00557548]
[1739777429749,10.23049419,2690.1,2690.0,0.00557548]
[1739777431249,0.74353,2689.5,2689.1,3.2078]
[1739777431453,3.95131,2689.6,2689.1,4.49111]
[1739777431750,3.9513,2689.6,2689.1,4.49112]
[1739777432052,4.5283,2689.6,2689.1,1.28332]
[1739777432251,4.5283,2689.6,2689.1,1.28889548]
[1739777432548,0.7436,2689.2,2689.1,0.00557548]
[1739777433655,9.48614419,2689.3,2689.1,0.00557548]
[1739777434049,0.7436,2689.2,2689.1,0.00557548]
[1739777434653,9.48614419,2689.3,2689.1,0.00557548]
[1739777434843,10.22973419,2689.3,2689.1,0.00557548]
[1739777435048,9.48614419,2689.3,2689.1,0.00557548]
[1739777435244,10.22973419,2689.3,2689.1,0.00557548]
[1739777435450,9.48614419,2689.3,2689.1,0.00557548]
[1739777435653,9.48614419,2689.3,2689.1,0.74920548]
[1739777436047,7.00214419,2689.3,2689.2,0.7436]
[1739777436253,9.48514419,2689.3,2689.1,0.74919548]
[1739777436666,9.48514419,2689.3,2689.1,0.00557548]
[1739777436852,9.48514419,2689.3,2689.1,0.74919548]
[1739777437455,9.48514419,2689.3,2689.1,0.00557548]
[1739777437853,10.22872419,2689.3,2689.1,0.00557548]
[1739777438256,9.48514419,2689.3,2689.1,0.00557548]
[1739777439452,0.7436,2689.2,2689.1,0.00557548]
[1739777441358,0.74372,2688.8,2688.5,1.28678]
[1739777441554,0.74372,2688.8,2688.4,3.2078]
[1739777441555,2.479,2688.8,2688.4,3.2078]
[1739777441759,2.479,2688.8,2688.1,0.5686]
[1739777441760,7.00214419,2688.6,2688.2,0.74387]
[1739777441961,3.2078,2688.3,2688.1,0.543]
[1739777442161,3.2078,2688.3,2688.1,1.28689]
[1739777442462,9.48314419,2688.3,2688.1,0.543]
[1739777442756,10.22699419,2688.3,2688.1,0.543]
[1739777442960,0.7439,2688.2,2687.9,0.00557548]
[1739777443255,3.79434419,2688.0,2687.9,0.00557548]
[1739777444849,3.79434419,2688.0,2687.9,0.74953548]
[1739777445362,7.00214419,2688.0,2687.9,0.74953548]
[1739777445561,7.00214419,2688.0,2687.9,0.00557548]
[1739777445759,7.00214419,2688.0,2687.9,0.74953548]
[1739777445960,7.00214419,2688.0,2687.9,0.00557548]
[1739777446856,7.55164419,2688.0,2687.9,0.00557548]
[1739777448062,8.29558419,2688.0,2687.9,0.00557548]
[1739777449159,7.55164419,2688.0,2687.9,0.00557548]
[1739777449863,7.00214419,2688.0,2687.9,0.00557548]
[1739777450259,13.00214419,2688.0,2687.2,0.5646]
[1739777450464,7.00214419,2687.5,2687.3,0.74411]
[1739777450661,2.485,2687.4,2687.3,0.74411]
[1739777454571,5.7525519,2687.4,2687.3,0.74411]
[1739777456370,5.7525519,2687.4,2687.2,0.5646]
[1739777456571,5.7525519,2687.4,2687.2,1.30875]
[1739777456773,5.7525519,2687.4,2687.2,0.5646]
[1739777457073,0.74413,2687.3,2687.1,0.57907548]
[1739777457371,3.2078,2687.2,2687.1,0.00557548]
[1739777458468,3.95196,2687.2,2687.1,0.00557548]
[1739777459373,0.74424,2686.9,2686.8,0.5435]
[1739777459568,9.6955919,2686.9,2686.8,0.5435]
[1739777459878,8.9513519,2686.9,2686.8,0.5435]
[1739777460167,9.6955919,2686.9,2686.8,0.5435]
[1739777460374,8.9513519,2686.9,2686.8,0.5435]
[1739777461368,9.6955919,2686.9,2686.8,0.5435]
[1739777461568,14.9513519,2686.9,2685.4,3.2078]
[1739777461777,3.2675519,2686.1,2686.0,0.5704]
[1739777461974,6.4753519,2686.1,2686.0,0.5704]
[1739777462476,6.4753519,2686.1,2686.0,1.31489]
[1739777462779,6.4753519,2686.4,2686.3,0.74441]
[1739777463275,2.476,2686.4,2686.3,0.74441]
[1739777463774,8.9513519,2686.4,2686.1,0.74445]
[1739777463972,8.9513519,2686.4,2686.0,0.5704]
[1739777464174,3.2675519,2686.1,2686.0,0.5704]
[1739777464578,3.2675519,2686.1,2686.0,1.31489]
[1739777466374,3.2675519,2686.1,2685.8,0.003717]
[1739777466574,2.476,2686.0,2685.8,0.003717]
[1739777466772,2.476,2686.0,2685.8,0.748247]
[1739777467476,2.476,2686.0,2685.8,0.748257]
[1739777467778,2.476,2686.0,2685.8,0.003717]
[1739777467987,6.4753519,2686.1,2686.0,0.74449]
[1739777468177,2.478,2686.2,2686.1,0.74446]
[1739777468482,2.48,2686.3,2686.2,0.74443]
[1739777468671,1.6417,2687.0,2686.1,0.5466]
[1739777468672,3.2078,2686.7,2686.1,0.5466]
[1739777468874,3.2078,2687.0,2686.9,0.74424]
[1739777469182,5.6888,2687.0,2686.9,0.74424]
[1739777469882,2.481,2687.0,2686.9,0.74424]
[1739777470583,0.00557548,2687.1,2687.0,0.74421]
[1739777470973,3.2078,2687.3,2687.2,0.74416]
[1739777471183,2.484,2687.7,2687.6,0.74405]
[1739777471381,2.484,2687.8,2687.7,0.74402]
[1739777471880,3.2078,2687.9,2687.8,0.74399]
[1739777472176,3.2078,2687.9,2687.6,0.00557548]
[1739777472384,3.2078,2687.9,2687.8,0.74399]
[1739777473074,3.2078,2687.9,2687.7,0.5894]
[1739777473376,3.80273235,2687.8,2687.6,0.00557548]
[1739777474283,3.2078,2687.9,2687.8,0.74399]
[1739777474580,3.2078,2687.9,2687.6,0.00557548]
[1739777474885,3.2078,2687.9,2687.6,0.74960548]
[1739777475182,3.2078,2687.9,2687.8,0.74399]